lending/lending_fUSD_20251121
["ID","MTS","AMOUNT","RATE_DAILY","PERIOD"]
[394568249,1763721031780,-6060.23996448,0.0001621,2]
[394568250,1763721031789,-387.97289112,0.0001621,2]
[394568251,1763721031799,-325.36249272,0.0001621,2]
[394568252,1763721031809,-1069.0,0.00016213,2]
[394568253,1763721031821,-168.0,0.00016216,2]
[394568254,1763721031830,-438.0,0.00016221,2]
[394568255,1763721031840,-2634.10902,0.0001625,2]
[394568257,1763721031852,-168.0,0.00016266,2]
[394568259,1763721031862,-323.12274501,0.00016272,2]
[394568261,1763721031877,-500.0,0.00016272,2]
[394568263,1763721031889,-500.0,0.00016272,2]
[394568265,1763721031900,-500.0,0.00016272,2]
[394568267,1763721031910,-500.0,0.00016272,2]
[394568269,1763721031923,-500.0,0.00016272,2]
[394568271,1763721031933,-500.0,0.00016272,2]
[394568273,1763721031942,-500.0,0.00016272,2]
[394568275,1763721031952,-500.0,0.00016272,2]
[394568277,1763721031962,-226.18657117,0.00016272,2]
[394568279,1763721031971,-500.0,0.00016272,2]
[394568281,1763721031981,-500.0,0.00016272,2]
[394568283,1763721031992,-500.0,0.00016272,2]
[394568285,1763721032002,-500.0,0.00016272,2]
[394568287,1763721032011,-500.0,0.00016272,2]
[394568289,1763721032021,-500.0,0.00016272,2]
[394568291,1763721032031,-500.0,0.00016272,2]
[394568293,1763721032041,-500.0,0.00016272,2]
[394568295,1763721032050,-500.0,0.00016272,2]
[394568297,1763721032060,-500.0,0.00016272,2]
[394568299,1763721032070,-160.87563008,0.00016273,2]
[394568301,1763721032079,-500.0,0.00016273,2]
[394568304,1763721032089,-500.0,0.00016273,2]
[394568306,1763721032099,-500.0,0.00016273,2]
[394568308,1763721032108,-505.75054514,0.00016273,2]
[394568310,1763721032117,-1722.54067468,0.00016273,2]
[394568312,1763721032136,-2469.07932532,0.00016273,2]
[394568314,1763721032145,-502.71724107,0.00016273,2]
[394568316,1763721032156,-9999.99,0.00016273,2]
[394568318,1763721032165,-3570.14,0.00016273,2]
[394568320,1763721032175,-4611.53,0.00016273,2]
[394568322,1763721032184,-9999.99,0.00016273,2]
[394568323,1763721032194,-501.93027893,0.00016273,2]
[394568324,1763721032203,-421.53241707,0.00016273,2]
[394568325,1763721032213,-500.0,0.00016273,2]
[394568326,1763721032223,-501.26089656,0.00016273,2]
[394568327,1763721032233,-500.54916352,0.00016273,2]
[394568328,1763721032242,-430.97913633,0.00016273,2]
[394568329,1763721032251,-312.5750897,0.00016273,2]
[394568330,1763721032261,-190.27108889,0.00016273,2]
[394568331,1763721032270,-500.0,0.00016273,2]
[394568332,1763721032284,-500.0,0.00016273,2]
[394568333,1763721032294,-164.49158553,0.00016273,2]
[394568334,1763721032305,-500.0,0.00016273,2]
[394568335,1763721032315,-178.62773842,0.00016273,2]
[394568336,1763721032325,-500.0,0.00016273,2]
[394568337,1763721032335,-500.0,0.00016273,2]
[394568338,1763721032345,-275.07752523,0.00016273,2]
[394568339,1763721032355,-500.0,0.00016273,2]
[394568340,1763721032365,-570.5854,0.00016274,2]
[394568341,1763721032378,-168.9157929,0.00016292,2]
[394568342,1763721032387,-1586.1687697,0.00016292,2]
[394568343,1763721032397,-275.65599069,0.00016292,2]
[394568344,1763721032407,-151.0,0.00016292,2]
[394568345,1763721032417,-500.0,0.00016294,2]
[394568346,1763721032426,-500.0,0.00016294,2]
[394568347,1763721032436,-177.0232878,0.00016294,2]
[394568348,1763721032448,-844.0867122,0.00016294,2]
[394568349,1763721032457,-410.33137457,0.00016294,2]
[394568350,1763721032496,-5958.73862543,0.00016294,2]
[394568351,1763721032506,-301.317,0.00016294,2]
[394568352,1763721032516,-568.17496064,0.00016294,2]
[394568353,1763721032526,-562.12,0.00016294,2]
[394568354,1763721032536,-500.0,0.00016294,2]
[394568355,1763721032546,-500.0,0.00016294,2]
[394568356,1763721032558,-500.0,0.00016294,2]
[394568357,1763721032568,-150.0,0.00016294,2]
[394568358,1763721032578,-200.0,0.00016294,2]
[394568359,1763721032587,-150.0,0.00016294,2]
[394568360,1763721032597,-200.0,0.00016294,2]
[394568361,1763721032606,-500.0,0.00016294,2]
[394568362,1763721032616,-500.0,0.00016294,2]
[394568363,1763721032628,-205.08566523,0.00016294,2]
[394568364,1763721032638,-500.0,0.00016294,2]
[394568365,1763721032648,-500.0,0.00016294,2]
[394568366,1763721032657,-150.0,0.00016294,2]
[394568367,1763721032668,-500.0,0.00016294,2]
[394568368,1763721032678,-150.0,0.00016294,2]
[394568369,1763721032687,-500.0,0.00016294,2]
[394568370,1763721032697,-251.0458032,0.00016294,2]
[394568371,1763721032706,-500.0,0.00016294,2]
[394568372,1763721032716,-500.0,0.00016294,2]
[394568373,1763721032725,-500.0,0.00016294,2]
[394568374,1763721032736,-190.44070334,0.00016294,2]
[394568375,1763721032747,-500.0,0.00016294,2]
[394568376,1763721032757,-568.07334572,0.00016294,2]
[394568377,1763721032767,-293.65405447,0.00016294,2]
[394568378,1763721032778,-772.7353,0.00016295,2]
[394568379,1763721032789,-2634.10902,0.0001631,2]
[394568380,1763721032800,-1069.0,0.00016333,2]
[394568381,1763721032811,-500.0,0.00016337,2]
[394568382,1763721032821,-500.0,0.00016337,2]
[394568383,1763721032833,-500.0,0.00016337,2]
[394568384,1763721032842,-260.46039511,0.00016356,2]
[394568385,1763721032852,-40320.98026191,0.00016357,2]
[394568386,1763721032862,-414.63511225,0.00016364,2]
[394568387,1763721032873,-500.0,0.00016373,2]
[394568388,1763721032882,-230.27303076,0.00016373,2]
[394568389,1763721032892,-501.28867276,0.00016373,2]
[394568390,1763721032903,-501.04348296,0.00016373,2]
[394568391,1763721032913,-500.0,0.00016373,2]
[394568392,1763721032923,-500.95899855,0.00016373,2]
[394568393,1763721032933,-500.0,0.00016373,2]
[394568394,1763721032943,-500.0,0.00016373,2]
[394568395,1763721032952,-500.93008745,0.00016373,2]
[394568396,1763721032962,-320.01819701,0.00016373,2]
[394568397,1763721032971,-500.0,0.00016373,2]
[394568398,1763721032982,-500.0,0.00016373,2]
[394568399,1763721032994,-500.0,0.00016373,2]
[394568400,1763721033004,-500.0,0.00016373,2]
[394568401,1763721033013,-364.06975177,0.00016373,2]
[394568402,1763721033022,-500.87253113,0.00016373,2]
[394568403,1763721033032,-500.0,0.00016373,2]
[394568404,1763721033041,-500.0,0.00016373,2]
[394568405,1763721033054,-629.01704566,0.00016373,2]
[394568406,1763721033064,-500.0,0.00016373,2]
[394568407,1763721033073,-500.0,0.00016373,2]
[394568408,1763721033083,-500.0,0.00016373,2]
[394568409,1763721033093,-500.0,0.00016373,2]
[394568410,1763721033103,-500.0,0.00016373,2]
[394568411,1763721033112,-500.0,0.00016373,2]
[394568412,1763721033125,-500.0,0.00016373,2]
[394568413,1763721033135,-501.10903681,0.00016373,2]
[394568414,1763721033145,-500.0,0.00016373,2]
[394568415,1763721033155,-500.0,0.00016373,2]
[394568416,1763721033165,-500.0,0.00016373,2]
[394568417,1763721033175,-500.0,0.00016373,2]
[394568418,1763721033185,-500.0,0.00016373,2]
[394568419,1763721033195,-150.0,0.00016373,2]
[394568420,1763721033204,-500.0,0.00016373,2]
[394568421,1763721033215,-2634.10902,0.0001638,2]
[394568422,1763721033226,-6060.23996442,0.00016381,2]
[394568423,1763721033236,-151.0,0.00016389,2]
[394568424,1763721033246,-500.0,0.00016391,2]
[394568425,1763721033256,-443.15926361,0.00016391,2]
[394568426,1763721033266,-500.0,0.00016391,2]
[394568427,1763721033277,-500.0,0.00016391,2]
[394568428,1763721033287,-399.53985602,0.00016391,2]
[394568429,1763721033297,-562.12,0.00016391,2]
[394568430,1763721033307,-562.12,0.00016391,2]
[394568431,1763721033317,-562.12,0.00016391,2]
[394568432,1763721033326,-500.0,0.00016391,2]
[394568433,1763721033336,-373.72756426,0.00016391,2]
[394568434,1763721033346,-244.16561713,0.00016391,2]
[394568435,1763721033356,-94037.7448168,0.00016392,2]
[394568436,1763721033366,-67533.28437619,0.00016392,2]
[394568437,1763721033409,-766.22784662,0.00016392,2]
[394568438,1763721033429,-346.9846993,0.00016392,2]
[394568439,1763721037410,-18190.09863013,0.00016392,2]
[394568440,1763721037576,-308.85994314,0.00016392,2]
[394568441,1763721037589,-860.43739575,0.00016392,2]
[394568442,1763721037641,-27078.20003922,0.00016392,2]
[394568467,1763721039618,-1469.60766301,0.00016392,2]
[394568468,1763721039672,-1237.425,0.00016392,2]
[394568469,1763721039682,-4096.26871275,0.00016392,2]
[394568470,1763721039692,-632.29500006,0.00016392,2]
[394568471,1763721039709,-1650.02,0.00016392,2]
[394568472,1763721039719,-413.5188385,0.00016392,2]
[394568473,1763721039729,-15173.2785,0.00016392,2]
[394568474,1763721039963,-255.6264,0.00016392,2]
[394568544,1763721047622,-32898.96431806,0.00016392,2]
[394568545,1763721047647,-2710.59824956,0.00016392,2]
[394568546,1763721047659,-292946.46356571,0.00016392,2]
[394568547,1763721047708,-821.21607538,0.00016392,2]
[394568548,1763721047733,-444.95632939,0.00016392,2]
[394568549,1763721047769,-400.0,0.00016392,2]
[394568550,1763721047781,-1434.13599974,0.00016392,2]
[394568551,1763721047809,-323.4987119,0.00016392,2]
[394568570,1763721064193,250.0,0.00015683,2]
[394568571,1763721066160,689.0,0.000158,5]
[394568572,1763721162162,10000.01,0.00016095,2]
[394568573,1763721162188,10000.01,0.00016095,2]
[394568574,1763721162213,10000.01,0.00016095,2]
[394568575,1763721162242,10000.01,0.00016095,2]
[394568576,1763721162266,10000.01,0.00016095,2]
[394568577,1763721162296,10000.01,0.00016095,2]
[394568578,1763721162323,10000.01,0.00016095,2]
[394568579,1763721162351,10000.01,0.00016095,2]
[394568580,1763721162377,10000.01,0.00016095,2]
[394568581,1763721162403,10000.01,0.00016095,2]
[394568582,1763721162905,-354.62709817,0.00016095,2]
[394568583,1763721168270,-1200.0,0.00016094,2]
[394568584,1763721168538,-218.44634236,0.00016095,2]
[394568585,1763721169756,-7116.86279844,0.00016095,2]
[394568586,1763721169878,-10000.01,0.00016095,2]
[394568587,1763721170008,-10000.01,0.00016095,2]
[394568588,1763721170153,-10000.01,0.00016095,2]
[394568589,1763721170305,-10000.01,0.00016095,2]
[394568590,1763721170384,-10000.01,0.00016095,2]
[394568591,1763721170470,-10000.01,0.00016095,2]
[394568592,1763721170575,-10000.01,0.00016095,2]
[394568593,1763721170713,-10000.01,0.00016095,2]
[394568594,1763721173096,-10000.01,0.00016095,2]
[394568595,1763721183229,-200.4318045,0.00016015,2]
[394568596,1763721183264,-300.0,0.00016094,2]
[394568597,1763721183294,-550.0,0.00016094,2]
[394568598,1763721183326,-846.39818806,0.00016095,2]
[394568599,1763721183402,-6206.35001488,0.00016095,2]
[394568600,1763721183488,-10000.01,0.00016095,2]
[394568601,1763721183640,-10000.01,0.00016095,2]
[394568602,1763721183666,-10000.01,0.00016095,2]
[394568603,1763721183796,-10000.01,0.00016095,2]
[394568604,1763721183923,-10000.01,0.00016095,2]
[394568605,1763721184041,-10000.01,0.00016095,2]
[394568606,1763721184149,-10000.01,0.00016095,2]
[394568607,1763721184262,-10000.01,0.00016095,2]
[394568608,1763721186628,-10000.01,0.00016095,2]
[394568609,1763721188485,6501.682677,7.945e-05,2]
[394568610,1763721198632,-10000.01,0.00016095,2]
[394568611,1763721198829,-10000.01,0.00016095,2]
[394568612,1763721198929,-10000.01,0.00016095,2]
[394568613,1763721199039,-10000.01,0.00016095,2]
[394568614,1763721199167,-10000.01,0.00016095,2]
[394568615,1763721200269,-10000.01,0.00016095,2]
[394568616,1763721200287,-10000.01,0.00016095,2]
[394568617,1763721200303,-10000.01,0.00016095,2]
[394568618,1763721200341,-10000.01,0.00016095,2]
[394568619,1763721202081,-8382.86776369,0.00016095,2]
[394568620,1763721205172,2751.0,0.00015424,2]
[394568621,1763721212125,-151.0,0.00016092,2]
[394568622,1763721212175,-9698.01,0.00016095,2]
[394568623,1763721212289,-10000.01,0.00016095,2]
[394568624,1763721212439,-10000.01,0.00016095,2]
[394568625,1763721212561,-10000.01,0.00016095,2]
[394568626,1763721212950,-10000.01,0.00016095,2]
[394568627,1763721213015,-1589.33440266,0.00016095,2]
[394568628,1763721213039,-6821.34119468,0.00016095,2]
[394568629,1763721213049,-180.42895222,0.00016095,2]
[394568630,1763721314349,150.0,0.0001538,2]
[394568631,1763721329417,1526.0,0.00022,30]
[394568633,1763721388272,193.48,0.00015364,2]
[394568636,1763721494690,10000.01,0.00016097,2]
[394568637,1763721494717,10000.01,0.00016097,2]
[394568638,1763721494749,10000.01,0.00016097,2]
[394568639,1763721494781,10000.01,0.00016097,2]
[394568640,1763721494812,10000.01,0.00016097,2]
[394568641,1763721494839,10000.01,0.00016097,2]
[394568642,1763721504584,-9656.53,0.00016097,2]
[394568643,1763721533206,170.0,6e-07,2]
[394568644,1763721542910,338.85484241,0.00015997,2]
[394568645,1763721548454,238.46248059,7.945e-05,2]
[394568646,1763721548475,10000.0,7.945e-05,2]
[394568647,1763721548497,1298.34728941,7.945e-05,2]
[394568648,1763721554276,1852.42,0.00015328,2]
[394568649,1763721620964,338.85484241,0.00015996,2]
[394568650,1763721623137,3536.23257548,7.945e-05,2]
[394568651,1763721666849,202.0,0.0001593,2]
[394568661,1763721711267,1155.59,0.00015307,2]
[394568662,1763721743322,150.0,0.00015307,2]
[394568663,1763721750171,1732.55050065,0.00016054,2]
[394568664,1763721763672,1484.11,7.656e-05,2]
[394568665,1763721763873,1484.11,8.059e-05,2]
[394568666,1763721764108,1484.11,8.462e-05,2]
[394568667,1763721764256,1484.11,8.864e-05,2]
[394568668,1763721764459,1025.42949935,9.267e-05,2]
[394568669,1763721764487,458.68050065,9.267e-05,2]
[394568670,1763721764651,1484.11,9.67e-05,2]
[394568671,1763721764842,1484.11,0.00010073,2]
[394568672,1763721765115,1484.11,0.00010476,2]
[394568673,1763721765248,1484.11,0.00010879,2]
[394568674,1763721765456,1484.11,0.00011282,2]
[394568675,1763721765666,1484.11,0.00011685,2]
[394568676,1763721765858,636.66949935,0.00012088,2]
[394568677,1763721765880,847.44050065,0.00012088,2]
[394568678,1763721766260,1484.11,0.00012491,2]
[394568679,1763721766454,1484.11,0.00012894,2]
[394568680,1763721766669,1484.11,0.00013297,2]
[394568681,1763721766857,1484.11,0.000137,2]
[394568682,1763721767564,1484.11,0.00014103,2]
[394568683,1763721767626,1484.11,0.00014505,2]
[394568684,1763721767683,247.90949935,0.00014908,2]
[394568685,1763721767706,1236.20050065,0.00014908,2]
[394568686,1763721767754,1484.11,0.00015311,2]
[394568687,1763721781083,1192.44449903,7.945e-05,2]
[394568689,1763721793888,1581.75452667,0.00012088,2]
[394568690,1763721805352,1034.07963541,0.00012088,2]
[394568692,1763721814163,151.0,0.00016054,2]
[394568693,1763721814199,176.28909051,0.00016054,2]
[394568694,1763721814247,176.28909051,0.00016054,2]
[394568695,1763721814277,151.0,0.00016054,2]
[394568697,1763721826344,152.52098494,0.00015996,2]
[394568699,1763721852611,500.0,0.00016073,2]
[394568700,1763721852656,506.89352697,0.00016073,2]
[394568701,1763721853027,151.0,0.00016073,2]
[394568702,1763721853900,151.0,0.00016073,2]
[394568703,1763721854134,500.7937568,0.00016073,2]
[394568704,1763721854822,151.0,0.00016073,2]
[394568705,1763721854850,500.0,0.00016073,2]
[394568706,1763721854882,164.99576637,0.00016073,2]
[394568707,1763721855751,170.90259371,0.00016073,2]
[394568708,1763721855981,229.38223314,0.00016073,2]
[394568709,1763721856003,38.63862214,0.00016073,2]
[394568710,1763721856028,200.82069322,0.00016073,2]
[394568713,1763721892347,321.69,0.00015268,2]
[394568714,1763721904272,500.0,0.00016073,2]
[394568715,1763721904797,500.0,0.00016073,2]
[394568716,1763721905102,500.0,0.00016073,2]
[394568717,1763721910321,500.0,0.00016073,2]
[394568718,1763721914603,150.0,0.00015288,2]
[394568719,1763721914689,150.0,0.00015773,2]
[394568720,1763721914755,150.0,0.00016016,2]
[394568721,1763721914821,150.0,0.0001553,2]
[394568722,1763721915319,150.0,0.00015288,2]
[394568723,1763721915361,150.0,0.00015627,2]
[394568724,1763721915410,150.0,0.00015967,2]
[394568725,1763721915718,150.0,0.00015288,2]
[394568726,1763721915757,150.0,0.00015627,2]
[394568727,1763721915834,150.0,0.00015967,2]
[394568728,1763721920826,150.0,0.00015288,2]
[394568729,1763721920888,150.0,0.0001553,2]
[394568730,1763721920956,150.0,0.00015773,2]
[394568731,1763721921026,150.0,0.00016016,2]
[394568732,1763721924469,150.0,0.00015288,2]
[394568733,1763721924535,150.0,0.00015627,2]
[394568734,1763721924606,150.0,0.00015967,2]
[394568735,1763721933383,150.0,0.00015288,2]
[394568736,1763721937983,150.0,0.00015288,2]
[394568737,1763721938863,-175.61,0.00016087,3]
[394568738,1763721938886,-324.39,0.00016087,3]
[394568739,1763721939093,151.0,0.00016073,2]
[394568740,1763721947057,150.0,0.00015288,2]
[394568741,1763721947375,150.0,0.00015288,2]
[394568742,1763721947411,150.0,0.00015571,2]
[394568743,1763721947456,150.0,0.00015854,2]
[394568744,1763721965778,805.0,0.00016,3]
[394568745,1763721974013,166.66,0.00014475,2]
[394568746,1763721974221,166.66,0.0001478,2]
[394568747,1763721974423,166.66,0.00015085,2]
[394568748,1763721974819,166.66,0.0001539,2]
[394568749,1763721975053,166.66,0.00015694,2]
[394568750,1763721975246,166.66,0.00015999,2]
[394568752,1763722007222,575.62681397,0.00015997,2]
[394568754,1763722027280,5521.0,0.000159,5]
[394568755,1763722033320,500.0,0.000159,5]
[394568778,1763722083425,200.0,0.00015253,2]
[394568780,1763722110043,500.0,0.00015248,2]
[394568782,1763722116387,151.0,0.00016073,2]
[394568783,1763722117363,226.86727152,0.00016073,2]
[394568784,1763722167799,1000.0,0.00016073,2]
[394568785,1763722169177,325.55591451,0.00015997,2]
[394568786,1763722169198,626.64478549,0.00015997,2]
[394568787,1763722203722,9373.36521451,0.00015997,2]
[394568788,1763722203748,3845.41592611,0.00015997,2]
[394568789,1763722218779,-3868.92659451,0.00016087,2]
[394568790,1763722220883,-449.6200722,0.00016087,2]
[394568791,1763722221921,2118.49,0.00015241,2]
[394568792,1763722222926,-1719.40575842,0.00016087,2]
[394568793,1763722224952,-300.0,0.00016087,2]
[394568794,1763722230216,-162.32180183,0.00016087,2]
[394568807,1763722231697,-803.3053275,0.00016087,2]
[394568813,1763722231749,-3648.63044554,0.00016087,2]
[394568815,1763722231759,-202.46,0.00016087,3]
[394568817,1763722231769,-202.83862469,0.0001609,2]
[394568818,1763722231780,-151.0,0.00016094,2]
[394568819,1763722231790,-151.0,0.00016094,2]
[394568820,1763722231800,-151.0,0.00016094,2]
[394568821,1763722231810,-300.0,0.00016094,2]
[394568822,1763722231819,-300.0,0.00016094,2]
[394568823,1763722231828,-300.0,0.00016094,2]
[394568824,1763722231842,-1200.0,0.00016094,2]
[394568825,1763722231851,-241.87113078,0.00016095,2]
[394568826,1763722231860,-513.18064495,0.00016095,2]
[394568827,1763722231870,-550.0,0.00016095,2]
[394568828,1763722231879,-500.0,0.00016096,2]
[394568829,1763722231888,-501.79448901,0.00016096,2]
[394568830,1763722231898,-500.0,0.00016096,2]
[394568831,1763722231908,-500.0,0.00016096,2]
[394568832,1763722231917,-201.09492299,0.00016096,2]
[394568833,1763722231928,-278.91504385,0.00016096,2]
[394568834,1763722231939,-500.0,0.00016096,2]
[394568835,1763722231948,-446.98688051,0.00016096,2]
[394568836,1763722231957,-500.0,0.00016096,2]
[394568837,1763722231966,-500.0,0.00016096,2]
[394568838,1763722231976,-500.0,0.00016096,2]
[394568839,1763722231985,-500.0,0.00016096,2]
[394568840,1763722231995,-144.03611768,0.00016096,2]
[394568841,1763722232011,-355.96388232,0.00016096,2]
[394568843,1763722232020,-149.24154559,0.00016096,2]
[394568845,1763722232036,-350.75845441,0.00016096,2]
[394568846,1763722232046,-500.0,0.00016096,2]
[394568847,1763722232055,-500.0,0.00016096,2]
[394568848,1763722232064,-500.0,0.00016096,2]
[394568849,1763722232073,-500.0,0.00016096,2]
[394568850,1763722232084,-500.0,0.00016096,2]
[394568851,1763722232094,-500.0,0.00016096,2]
[394568853,1763722232103,-500.0,0.00016096,2]
[394568854,1763722232112,-500.0,0.00016096,2]
[394568855,1763722232122,-500.0,0.00016096,2]
[394568856,1763722232131,-500.0,0.00016096,2]
[394568857,1763722232140,-500.0,0.00016096,2]
[394568858,1763722232149,-500.0,0.00016096,2]
[394568859,1763722232158,-500.0,0.00016096,2]
[394568860,1763722232168,-500.0,0.00016096,2]
[394568861,1763722232177,-500.0,0.00016096,2]
[394568862,1763722232186,-350.0,0.00016096,2]
[394568863,1763722232195,-500.0,0.00016096,2]
[394568864,1763722232204,-500.0,0.00016096,2]
[394568865,1763722232214,-500.0,0.00016096,2]
[394568866,1763722232223,-500.0,0.00016096,2]
[394568867,1763722232232,-500.0,0.00016096,2]
[394568868,1763722232243,-500.0,0.00016096,2]
[394568869,1763722232255,-500.0,0.00016096,2]
[394568870,1763722232265,-500.0,0.00016096,2]
[394568871,1763722232274,-500.0,0.00016096,2]
[394568872,1763722232283,-500.0,0.00016096,2]
[394568873,1763722232293,-308.7683382,0.00016096,2]
[394568874,1763722232302,-500.0,0.00016096,2]
[394568875,1763722232312,-500.0,0.00016096,2]
[394568876,1763722232321,-500.0,0.00016096,2]
[394568877,1763722232331,-500.0,0.00016096,2]
[394568878,1763722232341,-500.0,0.00016096,2]
[394568879,1763722232350,-500.0,0.00016096,2]
[394568880,1763722232360,-500.0,0.00016096,2]
[394568881,1763722232369,-500.0,0.00016096,2]
[394568882,1763722232378,-500.0,0.00016096,2]
[394568883,1763722232387,-500.0,0.00016096,2]
[394568884,1763722232396,-500.0,0.00016096,2]
[394568885,1763722232405,-500.0,0.00016096,2]
[394568886,1763722232415,-500.0,0.00016096,2]
[394568887,1763722232424,-500.0,0.00016096,2]
[394568888,1763722232433,-500.0,0.00016096,2]
[394568889,1763722232444,-500.0,0.00016096,2]
[394568890,1763722232454,-500.0,0.00016096,2]
[394568891,1763722232464,-500.0,0.00016096,2]
[394568892,1763722232475,-500.0,0.00016096,2]
[394568893,1763722232486,-500.0,0.00016096,2]
[394568894,1763722232496,-500.0,0.00016096,2]
[394568895,1763722232506,-500.0,0.00016096,2]
[394568896,1763722232515,-500.0,0.00016096,2]
[394568897,1763722232524,-500.0,0.00016096,2]
[394568898,1763722232535,-500.0,0.00016096,2]
[394568899,1763722232544,-500.0,0.00016096,2]
[394568900,1763722232554,-500.0,0.00016096,2]
[394568901,1763722232563,-500.0,0.00016096,2]
[394568902,1763722232572,-500.0,0.00016096,2]
[394568903,1763722232582,-500.0,0.00016096,2]
[394568904,1763722232592,-500.0,0.00016096,2]
[394568905,1763722232601,-500.0,0.00016096,2]
[394568906,1763722232612,-500.0,0.00016096,2]
[394568907,1763722232621,-500.0,0.00016096,2]
[394568908,1763722232630,-500.0,0.00016096,2]
[394568909,1763722232640,-500.0,0.00016096,2]
[394568910,1763722232649,-500.0,0.00016096,2]
[394568911,1763722232658,-500.0,0.00016096,2]
[394568912,1763722232667,-500.0,0.00016096,2]
[394568913,1763722232676,-500.0,0.00016096,2]
[394568914,1763722232686,-500.0,0.00016096,2]
[394568915,1763722232696,-401.00276425,0.00016096,2]
[394568916,1763722232706,-500.0,0.00016096,2]
[394568917,1763722232715,-414.67783564,0.00016096,2]
[394568918,1763722232725,-252.15600744,0.00016096,2]
[394568919,1763722232734,-506.26422673,0.00016096,2]
[394568920,1763722232743,-500.0,0.00016096,2]
[394568921,1763722232753,-342.13258469,0.00016096,2]
[394568922,1763722232764,-249.84748898,0.00016096,2]
[394568923,1763722232773,-500.0,0.00016096,2]
[394568924,1763722232783,-2045.92295962,0.00016096,2]
[394568925,1763722232792,-2045.92295962,0.00016096,2]
[394568926,1763722232801,-500.0,0.00016096,2]
[394568927,1763722232811,-2045.92295962,0.00016096,2]
[394568928,1763722232819,-1592.43233327,0.00016096,2]
[394568929,1763722232832,-413.55879027,0.00016096,2]
[394568930,1763722232843,-39.93183608,0.00016096,2]
[394568931,1763722232852,-247.39206771,0.00016096,2]
[394568932,1763722232864,-252.60793229,0.00016096,2]
[394568933,1763722232873,-43.39206768,0.00016096,2]
[394568934,1763722232884,-2002.53089194,0.00016096,2]
[394568935,1763722232893,-1028.03403648,0.00016096,2]
[394568936,1763722232920,-856.63891136,0.00016096,2]
[394568937,1763722232932,-161.25001178,0.00016096,2]
[394568938,1763722232941,-500.0,0.00016096,2]
[394568939,1763722232951,-337.74998822,0.00016096,2]
[394568940,1763722237700,-15467.90073372,0.00016092,2]
[394568941,1763722237709,-1708.1729714,0.00016096,2]
[394568942,1763722237718,-500.0,0.00016096,2]
[394568943,1763722237727,-174.98337554,0.00016096,2]
[394568944,1763722237754,-965.39130196,0.00016096,2]
[394568945,1763722237809,-868.80017451,0.00016096,2]
[394568946,1763722237819,-36.74810761,0.00016096,2]
[394568947,1763722237829,-310.17949035,0.00016096,2]
[394568948,1763722237837,-2045.92295962,0.00016096,2]
[394568949,1763722237848,-1008.47237965,0.00016096,2]
[394568950,1763722237872,-1037.45057997,0.00016096,2]
[394568951,1763722237882,-2045.92295962,0.00016096,2]
[394568952,1763722237891,-2045.92295962,0.00016096,2]
[394568953,1763722237900,-2045.92295962,0.00016096,2]
[394568961,1763722238097,-2045.92295962,0.00016096,2]
[394568962,1763722238123,-2045.92295962,0.00016096,2]
[394568963,1763722238132,-2045.92295962,0.00016096,2]
[394568964,1763722238142,-500.0,0.00016096,2]
[394568965,1763722238151,-153.25016852,0.00016096,2]
[394568966,1763722238161,-500.00000001,0.00016096,2]